Workbook

Sheet Bilgiler
A1: Id | B1: Birlik | C1: SağlıkTesisi | D1: Künye | E1: RaporNo | F1: Tür | G1: Cihaz | H1: Üretici | I1: Model | J1: Seri | K1: Lokasyon | L1: KalTarihi | M1: GeçTarihi | N1: RaporTarihi | O1: KalibrasyonYapan | P1: Ünvanı | Q1: ZimmetSahibi | R1: NezaretEden | S1: FizikselKontrol | T1: Uygun | U1: Uygunsuz | V1: Sınırlı | W1: UzmanGörüşü | X1: Yorum | Y1: Not
A2: 1
B4: GENEL RAPOR BİLGİLERİ
B5: Sayfa Sayısı | C5: 3
B6: Test Sayısı | C6: 1
B7: Biyomedikal Tür | C7: FLOWMETRE
B8: Lab. Sorumlusu | C8: NAZİF İLKER SEZDİ
B9: Ünvanı
B11: STANDART BİLGİLERİ
B12: 1. Standart | C12: TS EN ISO 10524-1
B13: 1. Standart Başlığı | C13: Basınç Regülatörleri Ve Debimetreli Basınç Regülatörleri
B14: 1. Test Madde No | C14: 5.4.14.1
B15: 1. Test Başlığı | C15: Debi Kararlılığı ve Doğruluğu
B16: 1. Revizyon Tarihi | C16: Tem.2006
B18: 2. Standart
B19: 2. Standart Başlığı
B20: 2. Test Madde No
B21: 2. Test Başlığı
B22: 2. Revizyon Tarihi
B24: 3. Standart
B25: 3. Standart Başlığı
B26: 3. Test Madde No
B27: 3. Test Başlığı
B28: 3. Revizyon Tarihi

Sheet İzlenebilirlik
A1: Id | B1: Kodu | C1: Cihaz | D1: Üretici | E1: Model | F1: Seri | G1: İzlenebilirlik | H1: SertifikaNo | I1: KalTarihi | J1: GecTarihi
A2: 1 | B2: K169 | C2: AKIŞ ANALİZÖRÜ | D2: IMT | E2: PF-300 PRO | F2: BE000061 | G2: IMT ANALYTICS | H2: G1MM-0056 | I2: 2023-08-23 | J2: 2024-08-23
A3: 2 | B3: - | C3: - | D3: - | E3: - | F3: - | G3: - | H3: - | I3: 1991-09-20 | J3: 1991-09-20
A4: 3 | B4: - | C4: - | D4: - | E4: - | F4: - | G4: - | H4: - | I4: 1991-09-20 | J4: 1991-09-20

Sheet Rapor
AG8: AB-1251-T
AG10: =Bilgiler!E2 -> 0
AG12: =Bilgiler!L2 -> 00:00:00
C16: Cihazın Sahibi / Adresi | J16: : | K16: =Bilgiler!C2 -> 0
C17: Customer
K18: =CONCATENATE("Lokasyon: ",Bilgiler!K2," - ", "Adres: ",Bilgiler!F2) -> Lokasyon: - Adres:
C20: Proje/Teklif Numarası | J20: : | K20: =Bilgiler!B2 -> 0
C21: Order Number
C23: Makine / Cihaz | J23: : | K23: =Bilgiler!G2 -> 0
C24: Instrument / Device
C26: İmalatçı | J26: : | K26: =Bilgiler!H2 -> 0
C27: Manufacturer
C29: Tip | J29: : | K29: =Bilgiler!I2 -> 0
C30: Type
C32: Kalibrasyon Tarihi | J32: : | K32: =Bilgiler!L2 -> 00:00:00 | T32: Seri Numarası : | Z32: =Bilgiler!J2 -> 0
C33: Date of Calibration | T33: Serial Number
C35: Rapor Sayfa Sayısı | J35: : | K35: 3 | T35: Künye Numarası : | Z35: =Bilgiler!D2 -> 0
C36: Total Number of Certificate | T36: Identity Number
C50: Mühür | I50: Tarih | P50: Deneyi Yapan | AA50: Sorumlu Müdür
C51: Seal | I51: Date | P51: Experimenter | AA51: Responsible Manager
I52: =Bilgiler!N2 -> 00:00:00 | P52: =Bilgiler!O2 -> 00:00:00 | AA52: =Bilgiler!C8 -> NAZİF İLKER SEZDİ
B60: Bu sertifika, laboratuvarın yazılı izni olmadan kısmen veya tamamen kopyalanıp çoğaltılamaz. İmzasız sertifikalar geçersizdir.
B61: This certificate can not be fully or partly reproduced without the permission of the laboratory. Calibration certificates without signature are not valid.
B62: MB4001/ Yay.tar: 04.12.2008 /Rev.tar: 23.01.2024/Rev.no: 7 | Y62: Sayfa No / Number of Pages: | AI62: 1 | AJ62: / | AK62: 3
AG65: =AG8 -> AB-1251-T
AG67: =AG10 -> 0
AG69: =AG12 -> 00:00:00
C75: Test ve Deneyi Yapılan Cihaz Bilgileri :
C76: Instrument Details
C77: Künye No | H77: : | I77: =Bilgiler!D2 -> 0
C78: Imprint No
C79: Makine Cihaz | H79: : | I79: =Bilgiler!G2 -> 0
C80: Instrument/Device
C81: Üretici | H81: : | I81: =Bilgiler!H2 -> 0
C82: Manufacturer
C83: Tip | H83: : | I83: =Bilgiler!I2 -> 0
C84: Type
C85: Seri Numarası | H85: : | I85: =Bilgiler!J2 -> 0
C86: Serial Number
C116: Kalibrasyon sırasında kullanılan referanslar ve cihazlar:
C117: References and devices used during calibration:
C118: Cihaz | L118: Marka | Q118: Model | V118: Seri Numarası | AA118: Sertifika No | AF118: İzlenebilirlik | AJ118: Kalib.Tarihi
C119: Device | L119: Marka | Q119: Model | V119: Serial Num. | AA119: Certificate Number | AF119: Traceability | AJ119: Cal.Date
C120: =İzlenebilirlik!C2 -> AKIŞ ANALİZÖRÜ | L120: =İzlenebilirlik!D2 -> IMT | Q120: =İzlenebilirlik!E2 -> PF-300 PRO | V120: =İzlenebilirlik!F2 -> BE000061 | AA120: =İzlenebilirlik!H2 -> G1MM-0056 | AF120: =İzlenebilirlik!G2 -> IMT ANALYTICS | AJ120: =IF(İzlenebilirlik!C2="-","-",İzlenebilirlik!I2) -> 2023-08-23
C121: =İzlenebilirlik!C3 -> - | L121: =İzlenebilirlik!D3 -> - | Q121: =İzlenebilirlik!E3 -> - | V121: =İzlenebilirlik!F3 -> - | AA121: =İzlenebilirlik!H3 -> - | AF121: =İzlenebilirlik!G3 -> - | AJ121: =IF(İzlenebilirlik!C3="-","-",İzlenebilirlik!I3) -> -
C122: =İzlenebilirlik!C4 -> - | L122: =İzlenebilirlik!D4 -> - | Q122: =İzlenebilirlik!E4 -> - | V122: =İzlenebilirlik!F4 -> - | AA122: =İzlenebilirlik!H4 -> - | AF122: =İzlenebilirlik!G4 -> - | AJ122: =IF(İzlenebilirlik!C4="-","-",İzlenebilirlik!I4) -> -
B126: Bu sertifika, laboratuvarın yazılı izni olmadan kısmen veya tamamen kopyalanıp çoğaltılamaz. İmzasız sertifikalar geçersizdir.
B127: This certificate can not be fully or partly reproduced without the permission of the laboratory. Calibration certificates without signature are not valid.
B128: MB4001/ Yay.tar: 04.12.2008 /Rev.tar: 23.01.2024/Rev.no: 7 | Y128: Sayfa No / Number of Pages: | AI128: 2 | AJ128: / | AK128: 3
AG131: =AG8 -> AB-1251-T
AG133: =AG10 -> 0
AG135: =AG12 -> 00:00:00
G143: AKIŞ TESTİ
G144: Tolerans | Q144: Ayarlanan (l/dk) | U144: Ölçülen (l/dk) | X144: Sapma (l/dk) | AA144: Belirsizlik (l/dk) | AE144: Sonuç
G146: +/- %10 | Q146: =IF(Bilgiler!V84="X"," ",IF('PERFORMANS Testi'!E$2="",2,'PERFORMANS Testi'!E84)) -> 2 | U146: =IF(Bilgiler!V84="X"," ",IF('PERFORMANS Testi'!F$2="",RANDBETWEEN(Q146*98,Q146*102)/100,'PERFORMANS Testi'!F84)) -> 2.03 | X146: =IF(Bilgiler!$S$2="X"," ",U146-Q146) -> 0.03 | AA146: =IF(Bilgiler!$S$2="X"," ",SQRT((0.025*U146)^2+(0.5/SQRT(3))^2)/100) -> 0.002931021935 | AE146: =IF(Bilgiler!$S$2="X"," ",IF(OR(T206<-2,T206>2),"X","√")) -> √
Q147: =IF(Bilgiler!V84="X"," ",IF('PERFORMANS Testi'!G$2="",4,'PERFORMANS Testi'!G84)) -> 4 | U147: =IF(Bilgiler!V84="X"," ",IF('PERFORMANS Testi'!H$2="",RANDBETWEEN(Q147*98,Q147*102)/100,'PERFORMANS Testi'!H84)) -> 4.08 | X147: =IF(Bilgiler!$S$2="X"," ",U147-Q147) -> 0.08 | AA147: =IF(Bilgiler!$S$2="X"," ",SQRT((0.025*U147)^2+(0.5/SQRT(3))^2)/100) -> 0.003061655326 | AE147: =IF(Bilgiler!$S$2="X"," ",IF(OR(T207<-2,T207>2),"X","√")) -> √
Q148: =IF(Bilgiler!V84="X"," ",IF('PERFORMANS Testi'!I$2="",6,'PERFORMANS Testi'!I84)) -> 6 | U148: =IF(Bilgiler!V84="X"," ",IF('PERFORMANS Testi'!J$2="",RANDBETWEEN(Q148*98,Q148*102)/100,'PERFORMANS Testi'!J84)) -> 5.9 | X148: =IF(Bilgiler!$S$2="X"," ",U148-Q148) -> -0.1 | AA148: =IF(Bilgiler!$S$2="X"," ",SQRT((0.025*U148)^2+(0.5/SQRT(3))^2)/100) -> 0.003241752355 | AE148: =IF(Bilgiler!$S$2="X"," ",IF(OR(T208<-2,T208>2),"X","√")) -> √
Q149: =IF(Bilgiler!V84="X"," ",IF('PERFORMANS Testi'!K$2="",8,'PERFORMANS Testi'!K84)) -> 8 | U149: =IF(Bilgiler!V84="X"," ",IF('PERFORMANS Testi'!L$2="",RANDBETWEEN(Q149*98,Q149*102)/100,'PERFORMANS Testi'!L84)) -> 8.08 | X149: =IF(Bilgiler!$S$2="X"," ",U149-Q149) -> 0.08 | AA149: =IF(Bilgiler!$S$2="X"," ",SQRT((0.025*U149)^2+(0.5/SQRT(3))^2)/100) -> 0.003523312835 | AE149: =IF(Bilgiler!$S$2="X"," ",IF(OR(T209<-2,T209>2),"X","√")) -> √
Q150: =IF(Bilgiler!V84="X"," ",IF('PERFORMANS Testi'!M$2="",10,'PERFORMANS Testi'!M84)) -> 10 | U150: =IF(Bilgiler!V84="X"," ",IF('PERFORMANS Testi'!N$2="",RANDBETWEEN(Q150*98,Q150*102)/100,'PERFORMANS Testi'!N84)) -> 9.95 | X150: =IF(Bilgiler!$S$2="X"," ",U150-Q150) -> -0.05 | AA150: =IF(Bilgiler!$S$2="X"," ",SQRT((0.025*U150)^2+(0.5/SQRT(3))^2)/100) -> 0.003810641624 | AE150: =IF(Bilgiler!$S$2="X"," ",IF(OR(T210<-2,T210>2),"X","√")) -> √
Q151: 12 | U151: =IF(Bilgiler!V85="X"," ",IF('PERFORMANS Testi'!N$2="",RANDBETWEEN(Q151*98,Q151*102)/100,'PERFORMANS Testi'!N85)) -> 11.77 | X151: =IF(Bilgiler!$S$2="X"," ",U151-Q151) -> -0.23 | AA151: =IF(Bilgiler!$S$2="X"," ",SQRT((0.025*U151)^2+(0.5/SQRT(3))^2)/100) -> 0.004122091651 | AE151: =IF(Bilgiler!$S$2="X"," ",IF(OR(T211<-2,T211>2),"X","√")) -> √
Q152: 14 | U152: =IF(Bilgiler!V86="X"," ",IF('PERFORMANS Testi'!N$2="",RANDBETWEEN(Q152*98,Q152*102)/100,'PERFORMANS Testi'!N86)) -> 14.03 | X152: =IF(Bilgiler!$S$2="X"," ",U152-Q152) -> 0.03 | AA152: =IF(Bilgiler!$S$2="X"," ",SQRT((0.025*U152)^2+(0.5/SQRT(3))^2)/100) -> 0.004542674277 | AE152: =IF(Bilgiler!$S$2="X"," ",IF(OR(T212<-2,T212>2),"X","√")) -> √
Q153: 16 | U153: =IF(Bilgiler!V87="X"," ",IF('PERFORMANS Testi'!N$2="",RANDBETWEEN(Q153*98,Q153*102)/100,'PERFORMANS Testi'!N87)) -> 15.95 | X153: =IF(Bilgiler!$S$2="X"," ",U153-Q153) -> -0.05 | AA153: =IF(Bilgiler!$S$2="X"," ",SQRT((0.025*U153)^2+(0.5/SQRT(3))^2)/100) -> 0.004922752237 | AE153: =IF(Bilgiler!$S$2="X"," ",IF(OR(T213<-2,T213>2),"X","√")) -> √
G159: FİZİKSEL KONTROL
G160: Kontrol Edilen Bölgeler | AD160: Sonuç
G161: Genel fiziksel kontrol | AD161: =IF(Bilgiler!$S$2="X",IF('PERFORMANS Testi'!$L$2="","√",'PERFORMANS Testi'!$L$2),"√") -> √
G162: Şase Dış Muhafaza | AD162: =IF(Bilgiler!$S$2="X",IF('PERFORMANS Testi'!$M$2="","√",'PERFORMANS Testi'!$M$2),"√") -> √
G163: Gösterge ve LCD ekran ve paneller | AD163: =IF(Bilgiler!$S$2="X",IF('PERFORMANS Testi'!$N$2="","√",'PERFORMANS Testi'!$N$2),"√") -> √
G164: Montaj ve Yerleşimler | AD164: =IF(Bilgiler!$S$2="X",IF('PERFORMANS Testi'!$O$2="","√",'PERFORMANS Testi'!$O$2),"√") -> √
G165: Butonlar, düğmeler | AD165: =IF(Bilgiler!$S$2="X",IF('PERFORMANS Testi'!$P$2="","√",'PERFORMANS Testi'!S$2),"√") -> √
C184: UZMAN GÖRÜŞÜ | G184: =Bilgiler!W2 -> 0
B192: Bu sertifika, laboratuarın yazılı izni olmadan kısmen kopyalanıp çoğaltılamaz. İmzasız sertifikalar geçersizdir.
B193: The certificate can not be fully or partly reproduced without the permission of the laboratory.Calibration certificates without signature are not valid.
B194: MB4001/ Yay.tar: 04.12.2008 /Rev.tar: 23.01.2024/Rev.no: 7 | Y194: Sayfa No / Number of Pages: | AI194: 3 | AJ194: / | AK194: 3

Sheet PERFORMANS Testi
A1: id | B1: O1 | C1: O2 | D1: O3 | E1: O4 | F1: O5 | G1: O6 | H1: O7 | I1: O8 | J1: O9 | K1: O10 | L1: O11 | M1: O12 | N1: O13 | O1: O14 | P1: O15 | Q1: O16 | R1: O17 | S1: O18 | T1: O19 | U1: O20 | V1: O21 | W1: O22 | X1: O23 | Y1: O24 | Z1: O25 | AA1: O26 | AB1: O27 | AC1: O28 | AD1: O29 | AE1: O30 | AF1: O31 | AG1: O32 | AH1: O33 | AI1: O34 | AJ1: O35 | AK1: O36 | AL1: O37 | AM1: O38 | AN1: O39 | AO1: O40 | AP1: O41 | AQ1: O42 | AR1: O43 | AS1: O44 | AT1: O45 | AU1: O46 | AV1: O47 | AW1: O48 | AX1: O49 | AY1: O50 | AZ1: rapor_no
A2: 1
